[Event "Amsterdam Chess Open 2024"]
[Site "Amsterdam"]
[Date "2024.11.03"]
[Round "5.6"]
[White "Stojiljkovic, Stefan"]
[Black "Terekhov, Andrey"]
[Result "1/2-1/2"]
[ECO "A06"]
[WhiteElo "2122"]
[BlackElo "2261"]
[Annotator "RC"]
[PlyCount "110"]
[EventDate "2024.10.31"]
[EventType "swiss"]
[EventCountry "NED"]
[SourceTitle "playchess.com"]
[Source "ChessBase"]
[SourceQuality "1"]
[TimeControl "5400+30"]

1. Nf3 {[%emt 0:00:07]} d5 {[%emt 0:00:13]} 2. e3 {[%emt 0:00:35]} Nf6 {[%emt 0:01:02]} 3. b3 {[%emt 0:01:10]} e6 {[%emt 0:01:05]} 4. Bb2 {[%emt 0:00:51]} b6 {[%emt 0:00:30]} 5. Bb5+ {[%emt 0:02:54]} c6 {[%emt 0:01:41]} 6. Be2 {[%emt 0:00:07]} Bb7 {[%emt 0:05:21]} 7. Ne5 {[%emt 0:03:10]} Nbd7 {[%emt 0:01:47]} 8. f4 {[%emt 0:01:11]} Nxe5 {[%emt 0:15:36]} 9. fxe5 {[%emt 0:04:36]} Nd7 {[%emt 0:00:20]} 10. O-O {[%emt 0:01:16]} Be7 {[%emt 0:07:41]} 11. Qe1 {[%emt 0:12:43]} O-O {[%emt 0:12:28]} 12. d3 {[%emt 0:15:06]} Qc7 {[%emt 0:02:57]} 13. Qg3 {[%emt 0:04:51]} f5 {[%emt 0:19:14]} 14. Nd2 {[%emt 0:01:51]} c5 {[%emt 0:02:20]} 15. Bf3 {[%emt 0:03:06]} b5 {[%emt 0:01:35]} 16. c4 {[%emt 0:08:32]} bxc4 {[%emt 0:05:31]} 17. bxc4 {[%emt 0:00:52]} Rab8 {[%emt 0:00:55]} 18. Rab1 {[%emt 0:06:00]} Nb6 {[%emt 0:01:43]} 19. cxd5 {[%emt 0:06:49]} Nxd5 {[%emt 0:04:11]} 20. Nc4 {[%emt 0:04:55]} Nxe3 {[%emt 0:01:04]} 21. Nxe3 {[%emt 0:02:21]} f4 {[%emt 0:00:03]} 22. Qh3 {[%emt 0:06:46]} fxe3 {[%emt 0:00:09]} 23. Qxe6+ {[%emt 0:00:58]} Kh8 {[%emt 0:00:08]} 24. Be2 {[%emt 0:01:17]} Bc8 {[%emt 0:10:57]} 25. Rxf8+ {[%emt 0:04:15]} Bxf8 {[%emt 0:00:01]} 26. Qd5 {[%emt 0:00:47]} Qe7 {[%emt 0:00:48]} 27. e6 {[%emt 0:04:53]} Bxe6 {[%emt 0:02:42]} 28. Qe5 {[%emt 0:00:22]} Rd8 {[%emt 0:01:36]} 29. Qxe3 {[%emt 0:00:54]} Bxa2 {[%emt 0:00:28]} 30. Qxe7 {[%emt 0:00:16]} Bxe7 {[%emt 0:00:01]} 31. Ra1 {[%emt 0:00:17]} Be6 {[%emt 0:01:13]} 32. Rxa7 {[%emt 0:00:53]} Rd7 {[%emt 0:00:28]} 33. Rxd7 {[%emt 0:00:30]} Bxd7 {[%emt 0:00:01]} 34. Ba3 {[%emt 0:00:15]} Kg8 {[%emt 0:01:06]} 35. d4 {[%emt 0:00:08]} Kf7 {[%emt 0:00:11]} 36. Bc4+ {[%emt 0:00:14]} Kf6 {[%emt 0:00:32]} 37. dxc5 {[%emt 0:00:47]} Ke5 {[%emt 0:00:29]} 38. Bg8 {[%emt 0:01:45]} Be6 {[%emt 0:00:49]} 39. Bxh7 {[%emt 0:00:38]} Kd5 {[%emt 0:00:10]} 40. Kf2 {[%emt 0:00:26]} Bxc5+ {[%emt 0:00:37]} 41. Bxc5 {[%emt 0:00:08]} Kxc5 {[%emt 0:00:00]} 42. Ke3 {[%emt 0:00:19]} Kd6 {[%emt 0:00:26]} 43. Kf4 {[%emt 0:00:15]} Ke7 {[%emt 0:00:22]} 44. Ke5 {[%emt 0:00:15]} Bd7 {[%emt 0:01:15]} 45. Bg8 {[%emt 0:00:23]} Bc8 {[%emt 0:00:33]} 46. Bd5 {[%emt 0:00:04]} Bd7 {[%emt 0:00:08]} 47. Be4 {[%emt 0:00:50]} Kf7 {[%emt 0:00:16]} 48. Bf5 {[%emt 0:00:04]} Bc6 {[%emt 0:00:10]} 49. g4 {[%emt 0:00:07]} g6 {[%emt 0:00:53]} 50. Bd3 {[%emt 0:00:27]} Kg7 {[%emt 0:01:04]} 51. h4 {[%emt 0:00:22]} Bd7 {[%emt 0:00:26]} 52. Kf4 {[%emt 0:00:08]} Kf6 {[%emt 0:00:28]} 53. Be4 {[%emt 0:00:15]} Be6 {[%emt 0:00:33]} 54. g5+ {[%emt 0:00:10]} Kg7 {[%emt 0:00:15]} 55. Ke5 {[%emt 0:00:05]} Bg4 {[%emt 0:00:24]} 1/2-1/2

[Event "Amsterdam Chess Open 2024"]
[Site "Amsterdam"]
[Date "2024.11.03"]
[Round "5.7"]
[White "Van Rootselaar, Rik"]
[Black "Stanojevic, Ilija"]
[Result "1-0"]
[ECO "E04"]
[WhiteElo "2248"]
[BlackElo "2197"]
[Annotator "RC"]
[PlyCount "115"]
[EventDate "2024.10.31"]
[EventType "swiss"]
[EventCountry "NED"]
[SourceTitle "playchess.com"]
[Source "ChessBase"]
[SourceQuality "1"]
[TimeControl "5400+30"]

1. d4 {[%emt 0:00:03]} d5 {[%emt 0:00:24]} 2. c4 {[%emt 0:00:08]} e6 {[%emt 0:00:09]} 3. Nf3 {[%emt 0:00:19]} Nf6 {[%emt 0:00:09]} 4. g3 {[%emt 0:00:06]} dxc4 {[%emt 0:00:15]} 5. Bg2 {[%emt 0:00:09]} a6 {[%emt 0:00:05]} 6. O-O {[%emt 0:01:10]} Nc6 {[%emt 0:00:05]} 7. Nbd2 {[%emt 0:00:55]} b5 {[%emt 0:02:52]} 8. b3 {[%emt 0:00:55]} c3 {[%emt 0:00:07]} 9. Nb1 {[%emt 0:00:30]} b4 {[%emt 0:00:02]} 10. a3 {[%emt 0:00:53]} Rb8 {[%emt 0:00:04]} 11. axb4 {[%emt 0:03:59]} Bxb4 {[%emt 0:00:08]} 12. Qd3 {[%emt 0:03:28]} e5 {[%emt 0:01:03]} 13. Nxc3 {[%emt 0:03:55]} Nxd4 {[%emt 0:36:59]} 14. Nxd4 {[%emt 0:08:01]} Qxd4 {[%emt 0:05:07]} 15. Qxd4 {[%emt 0:01:54]} exd4 {[%emt 0:00:05]} 16. Na4 {[%emt 0:00:17]} Bg4 {[%emt 0:15:50]} 17. Rd1 {[%emt 0:17:42]} c5 {[%emt 0:07:29]} 18. Bf4 {[%emt 0:09:11]} O-O {[%emt 0:04:20]} 19. Bxb8 {[%emt 0:02:31]} Rxb8 {[%emt 0:01:58]} 20. Kf1 {[%emt 0:00:27]} Be6 {[%emt 0:02:41]} 21. Rdc1 {[%emt 0:01:13]} Rb5 {[%emt 0:02:00]} 22. Bc6 {[%emt 0:09:57]} Ra5 {[%emt 0:00:05]} 23. Nb2 {[%emt 0:00:35]} Rxa1 {[%emt 0:11:50]} 24. Rxa1 {[%emt 0:00:12]} a5 {[%emt 0:01:12]} 25. Nd3 {[%emt 0:01:16]} Bc3 {[%emt 0:00:24]} 26. Rc1 {[%emt 0:03:25]} c4 {[%emt 0:02:49]} 27. bxc4 {[%emt 0:00:12]} Bxc4 {[%emt 0:00:07]} 28. Nb2 {[%emt 0:03:41]} Bb3 {[%emt 0:03:42]} 29. Na4 {[%emt 0:03:26]} Bxa4 {[%emt 0:02:03]} 30. Bxa4 {[%emt 0:00:05]} Ne4 {[%emt 0:00:48]} 31. Bc2 {[%emt 0:03:31]} Nd2+ {[%emt 0:00:13]} 32. Kg2 {[%emt 0:00:12]} g5 {[%emt 0:00:25]} 33. Bd1 {[%emt 0:03:31]} Bb4 {[%emt 0:00:57]} 34. Rc7 {[%emt 0:00:44]} Kg7 {[%emt 0:00:19]} 35. Ba4 {[%emt 0:01:16]} Ne4 {[%emt 0:00:34]} 36. Bb3 {[%emt 0:02:25]} Nd6 {[%emt 0:00:13]} 37. Kf3 {[%emt 0:02:19]} h5 {[%emt 0:00:24]} 38. h3 {[%emt 0:01:12]} Kf6 {[%emt 0:00:29]} 39. Rd7 {[%emt 0:00:57]} Kg6 {[%emt 0:00:43]} 40. Rd8 {[%emt 0:02:52]} f5 {[%emt 0:00:29]} 41. h4 {[%emt 0:02:24]} Ne4 {[%emt 0:00:47]} 42. Bc2 {[%emt 0:02:36]} g4+ {[%emt 0:00:18]} 43. Kg2 {[%emt 0:00:05]} Nd6 {[%emt 0:00:30]} 44. Rg8+ {[%emt 0:00:41]} Kf6 {[%emt 0:00:40]} 45. Rg5 {[%emt 0:00:19]} a4 {[%emt 0:00:27]} 46. Bxa4 {[%emt 0:00:16]} Ne4 {[%emt 0:00:37]} 47. Rxh5 {[%emt 0:01:12]} Kg6 {[%emt 0:00:29]} 48. Be8+ {[%emt 0:00:49]} Kf6 {[%emt 0:00:20]} 49. Bc6 {[%emt 0:00:59]} Nc3 {[%emt 0:00:39]} 50. Bd7 {[%emt 0:00:47]} Nxe2 {[%emt 0:00:25]} 51. Bxf5 {[%emt 0:01:44]} Nc3 {[%emt 0:00:28]} 52. Bd3 {[%emt 0:00:13]} Nd1 {[%emt 0:00:40]} 53. Rf5+ {[%emt 0:00:44]} Ke6 {[%emt 0:00:06]} 54. Rb5 {[%emt 0:00:55]} Bc3 {[%emt 0:00:22]} 55. h5 {[%emt 0:01:17]} Nb2 {[%emt 0:00:17]} 56. Bf5+ {[%emt 0:00:05]} Kf7 {[%emt 0:00:53]} 57. Rb3 {[%emt 0:00:35]} Kf6 {[%emt 0:00:26]} 58. h6 {[%emt 0:01:47]} 1-0

[Event "Amsterdam Chess Open 2024"]
[Site "Amsterdam"]
[Date "2024.11.03"]
[Round "5.8"]
[White "Ragnarsson, Dagur"]
[Black "Pham, Khoi"]
[Result "1-0"]
[ECO "A26"]
[WhiteElo "2346"]
[BlackElo "2264"]
[Annotator "RC"]
[PlyCount "79"]
[EventDate "2024.10.31"]
[EventType "swiss"]
[EventCountry "NED"]
[SourceTitle "playchess.com"]
[Source "ChessBase"]
[SourceQuality "1"]
[TimeControl "5400+30"]

1. c4 {[%emt 0:00:02]} Nf6 {[%emt 0:00:06]} 2. Nc3 {[%emt 0:00:26]} g6 {[%emt 0:00:08]} 3. g3 {[%emt 0:00:07]} Bg7 {[%emt 0:00:56]} 4. Bg2 {[%emt 0:00:08]} O-O {[%emt 0:00:07]} 5. Nf3 {[%emt 0:00:04]} d6 {[%emt 0:01:19]} 6. O-O {[%emt 0:00:08]} e5 {[%emt 0:01:42]} 7. d3 {[%emt 0:00:07]} Nc6 {[%emt 0:00:25]} 8. Rb1 {[%emt 0:00:05]} a5 {[%emt 0:00:04]} 9. b3 {[%emt 0:00:05]} Bf5 {[%emt 0:07:04]} 10. Nh4 {[%emt 0:09:23]} Be6 {[%emt 0:00:50]} 11. a3 {[%emt 0:05:37]} h6 {[%emt 0:08:51]} 12. e4 {[%emt 0:04:28]} Nd7 {[%emt 0:07:51]} 13. Ne2 {[%emt 0:07:15]} Rb8 {[%emt 0:07:02]} 14. Be3 {[%emt 0:00:59]} Nd4 {[%emt 0:05:37]} 15. Nxd4 {[%emt 0:03:32]} exd4 {[%emt 0:00:05]} 16. Bd2 {[%emt 0:00:04]} Kh7 {[%emt 0:05:25]} 17. f4 {[%emt 0:00:25]} Nf6 {[%emt 0:12:46]} 18. Bxa5 {[%emt 0:07:34]} Ra8 {[%emt 0:00:16]} 19. Bd2 {[%emt 0:00:58]} Rxa3 {[%emt 0:01:11]} 20. f5 {[%emt 0:00:34]} Bc8 {[%emt 0:02:43]} 21. e5 {[%emt 0:06:53]} dxe5 {[%emt 0:14:40]} 22. Bb4 {[%emt 0:00:13]} Ra6 {[%emt 0:00:14]} 23. Bxf8 {[%emt 0:00:31]} Bxf8 {[%emt 0:00:09]} 24. fxg6+ {[%emt 0:00:48]} fxg6 {[%emt 0:00:05]} 25. Qe2 {[%emt 0:01:45]} Qe7 {[%emt 0:03:29]} 26. Rbe1 {[%emt 0:04:56]} Bg7 {[%emt 0:00:22]} 27. Qxe5 {[%emt 0:02:58]} Re6 {[%emt 0:03:18]} 28. Qxe6 {[%emt 0:11:10]} Bxe6 {[%emt 0:00:13]} 29. Bd5 {[%emt 0:01:18]} Ng4 {[%emt 0:12:08]} 30. Rxe6 {[%emt 0:00:34]} Qd7 {[%emt 0:01:17]} 31. Rxg6 {[%emt 0:04:25]} Ne5 {[%emt 0:00:42]} 32. Re6 {[%emt 0:00:20]} c6 {[%emt 0:01:28]} 33. Be4+ {[%emt 0:00:29]} Kg8 {[%emt 0:00:06]} 34. Bf5 {[%emt 0:00:12]} Qd8 {[%emt 0:01:02]} 35. Ng6 {[%emt 0:00:23]} Qg5 {[%emt 0:00:36]} 36. Rf4 {[%emt 0:02:55]} Nxg6 {[%emt 0:02:12]} 37. Rxg6 {[%emt 0:00:30]} Qh5 {[%emt 0:00:15]} 38. Rfg4 {[%emt 0:02:47]} Qxf5 {[%emt 0:00:50]} 39. Rxg7+ {[%emt 0:00:05]} Kf8 {[%emt 0:00:27]} 40. Rf4 {[%emt 0:00:24]} 1-0

[Event "Amsterdam Chess Open 2024"]
[Site "Amsterdam"]
[Date "2024.11.03"]
[Round "5.9"]
[White "Kazarian, Anna-Maja"]
[Black "Brink, Barry"]
[Result "1-0"]
[ECO "B48"]
[WhiteElo "2178"]
[BlackElo "2342"]
[Annotator "RC"]
[PlyCount "33"]
[EventDate "2024.10.31"]
[EventType "swiss"]
[EventCountry "NED"]
[SourceTitle "playchess.com"]
[Source "ChessBase"]
[SourceQuality "1"]
[TimeControl "5400+30"]

1. e4 {[%emt 0:00:02]} c5 {[%emt 0:10:53]} 2. Nf3 {[%emt 0:00:06]} e6 {[%emt 0:00:07]} 3. d4 {[%emt 0:00:04]} cxd4 {[%emt 0:00:10]} 4. Nxd4 {[%emt 0:00:05]} Nc6 {[%emt 0:00:12]} 5. Nc3 {[%emt 0:00:08]} Qc7 {[%emt 0:00:17]} 6. Be3 {[%emt 0:00:07]} a6 {[%emt 0:01:43]} 7. g4 {[%emt 0:00:32]} Nxd4 {[%emt 0:01:37]} 8. Qxd4 {[%emt 0:01:19]} b5 {[%emt 0:00:55]} 9. O-O-O {[%emt 0:06:13]} Bb7 {[%emt 0:04:15]} 10. f3 {[%emt 0:12:04]} Rc8 {[%emt 0:04:47]} 11. Rd2 {[%emt 0:02:47]} h6 {[%emt 0:27:50]} 12. Bxb5 {[%emt 0:19:46]} Nf6 {[%emt 0:03:27]} 13. Ba4 {[%emt 0:11:05]} e5 {[%emt 0:00:17]} 14. Qa7 {[%emt 0:03:14]} Bb4 {[%emt 0:01:11]} 15. Bb6 {[%emt 0:01:12]} Qb8 {[%emt 0:00:05]} 16. Qxb8 {[%emt 0:00:44]} Rxb8 {[%emt 0:00:06]} 17. Bc7 {[%emt 0:00:54]} 1-0

[Event "Amsterdam Chess Open 2024"]
[Site "Amsterdam"]
[Date "2024.11.03"]
[Round "5.10"]
[White "Saine, Zachary"]
[Black "Dekker, Jasper"]
[Result "1-0"]
[ECO "B75"]
[WhiteElo "2038"]
[BlackElo "1963"]
[Annotator "RC"]
[PlyCount "89"]
[EventDate "2024.10.31"]
[EventType "swiss"]
[EventCountry "NED"]
[SourceTitle "playchess.com"]
[Source "ChessBase"]
[SourceQuality "1"]
[TimeControl "5400+30"]

1. e4 {[%emt 0:04:22]} c5 {[%emt 0:00:22]} 2. Nf3 {[%emt 0:00:07]} d6 {[%emt 0:00:50]} 3. d4 {[%emt 0:00:06]} cxd4 {[%emt 0:00:06]} 4. Nxd4 {[%emt 0:00:04]} Nf6 {[%emt 0:00:10]} 5. Nc3 {[%emt 0:00:04]} g6 {[%emt 0:00:51]} 6. f3 {[%emt 0:00:11]} Bg7 {[%emt 0:00:08]} 7. Be3 {[%emt 0:00:04]} a6 {[%emt 0:02:05]} 8. Qd2 {[%emt 0:00:25]} h5 {[%emt 0:02:14]} 9. h3 {[%emt 0:00:50]} b5 {[%emt 0:02:49]} 10. a4 {[%emt 0:01:45]} bxa4 {[%emt 0:10:44]} 11. Nxa4 {[%emt 0:09:28]} Nbd7 {[%emt 0:06:14]} 12. Bc4 {[%emt 0:03:28]} Bb7 {[%emt 0:05:03]} 13. O-O {[%emt 0:06:50]} Ne5 {[%emt 0:04:39]} 14. Bb3 {[%emt 0:14:45]} O-O {[%emt 0:08:08]} 15. c4 {[%emt 0:03:40]} e6 {[%emt 0:05:24]} 16. Rfd1 {[%emt 0:06:14]} Rb8 {[%emt 0:06:23]} 17. c5 {[%emt 0:06:51]} d5 {[%emt 0:05:10]} 18. Bf4 {[%emt 0:02:47]} Nc6 {[%emt 0:05:04]} 19. Nxc6 {[%emt 0:03:23]} Bxc6 {[%emt 0:02:44]} 20. Bxb8 {[%emt 0:00:08]} Qxb8 {[%emt 0:00:18]} 21. exd5 {[%emt 0:03:34]} Nxd5 {[%emt 0:04:27]} 22. Bxd5 {[%emt 0:00:42]} Bxd5 {[%emt 0:00:09]} 23. Nb6 {[%emt 0:00:20]} Bb3 {[%emt 0:01:24]} 24. Nd7 {[%emt 0:05:11]} Qg3 {[%emt 0:00:51]} 25. Nxf8 {[%emt 0:00:57]} Be5 {[%emt 0:00:36]} 26. Rdc1 {[%emt 0:06:31]} Qh2+ {[%emt 0:01:30]} 27. Kf1 {[%emt 0:00:23]} Bg3 {[%emt 0:02:09]} 28. Qd4 {[%emt 0:00:49]} Be5 {[%emt 0:07:53]} 29. Qe3 {[%emt 0:05:16]} Kxf8 {[%emt 0:04:47]} 30. Qxb3 {[%emt 0:02:59]} Qh1+ {[%emt 0:03:27]} 31. Kf2 {[%emt 0:03:26]} Bd4+ {[%emt 0:00:52]} 32. Ke2 {[%emt 0:00:05]} Qxg2+ {[%emt 0:00:26]} 33. Kd1 {[%emt 0:02:11]} Qf2 {[%emt 0:02:31]} 34. Qd3 {[%emt 0:02:11]} Bxb2 {[%emt 0:00:27]} 35. c6 {[%emt 0:00:38]} Bxa1 {[%emt 0:01:07]} 36. c7 {[%emt 0:01:10]} Qg1+ {[%emt 0:02:27]} 37. Kd2 {[%emt 0:01:38]} Qf2+ {[%emt 0:01:10]} 38. Qe2 {[%emt 0:00:14]} Qd4+ {[%emt 0:00:15]} 39. Kc2 {[%emt 0:00:50]} Qc3+ {[%emt 0:01:44]} 40. Kb1 {[%emt 0:00:15]} Qb3+ {[%emt 0:01:36]} 41. Kxa1 {[%emt 0:00:06]} Qa3+ {[%emt 0:00:09]} 42. Kb1 {[%emt 0:00:22]} Qb3+ {[%emt 0:00:09]} 43. Qb2 {[%emt 0:00:11]} Qd3+ {[%emt 0:00:08]} 44. Rc2 {[%emt 0:00:03]} Qf1+ {[%emt 0:00:11]} 45. Ka2 {[%emt 0:00:14]} 1-0

[Event "Amsterdam Chess Open 2024"]
[Site "Amsterdam"]
[Date "2024.11.03"]
[Round "5.11"]
[White "Mikko, Rondo"]
[Black "Fritschy, Pieter"]
[Result "1-0"]
[ECO "E01"]
[WhiteElo "1966"]
[BlackElo "1930"]
[Annotator "RC"]
[PlyCount "97"]
[EventDate "2024.10.31"]
[EventType "swiss"]
[EventCountry "NED"]
[SourceTitle "playchess.com"]
[Source "ChessBase"]
[SourceQuality "1"]
[TimeControl "5400+30"]

1. Nf3 {[%emt 0:00:12]} d5 {[%emt 0:00:16]} 2. g3 {[%emt 0:00:08]} c5 {[%emt 0:00:59]} 3. Bg2 {[%emt 0:00:06]} Nc6 {[%emt 0:00:56]} 4. d4 {[%emt 0:02:21]} e6 {[%emt 0:01:59]} 5. O-O {[%emt 0:01:09]} Nf6 {[%emt 0:01:35]} 6. c4 {[%emt 0:02:02]} cxd4 {[%emt 0:03:55]} 7. Nxd4 {[%emt 0:00:42]} Bc5 {[%emt 0:03:03]} 8. Nb3 {[%emt 0:06:04]} Bb6 {[%emt 0:00:59]} 9. cxd5 {[%emt 0:02:53]} Nxd5 {[%emt 0:02:19]} 10. Na3 {[%emt 0:03:20]} O-O {[%emt 0:01:48]} 11. Nc4 {[%emt 0:01:22]} Bc7 {[%emt 0:00:45]} 12. Ne3 {[%emt 0:03:37]} Nce7 {[%emt 0:02:46]} 13. Nxd5 {[%emt 0:05:29]} Nxd5 {[%emt 0:00:40]} 14. e4 {[%emt 0:00:33]} Nf6 {[%emt 0:02:27]} 15. Qe2 {[%emt 0:07:59]} Qe7 {[%emt 0:04:40]} 16. e5 {[%emt 0:11:10]} Nd5 {[%emt 0:01:49]} 17. Rd1 {[%emt 0:03:17]} Rd8 {[%emt 0:01:46]} 18. Rd4 {[%emt 0:04:03]} f6 {[%emt 0:13:07]} 19. exf6 {[%emt 0:00:24]} Qxf6 {[%emt 0:00:50]} 20. Rd1 {[%emt 0:14:21]} Bb6 {[%emt 0:05:44]} 21. Nd2 {[%emt 0:01:11]} Rf8 {[%emt 0:05:37]} 22. Rf1 {[%emt 0:01:00]} Bd7 {[%emt 0:02:17]} 23. a4 {[%emt 0:00:58]} a6 {[%emt 0:01:37]} 24. Nc4 {[%emt 0:00:44]} Bc7 {[%emt 0:00:45]} 25. Ne3 {[%emt 0:02:55]} Bc6 {[%emt 0:02:38]} 26. Nxd5 {[%emt 0:01:09]} Bxd5 {[%emt 0:01:02]} 27. Be3 {[%emt 0:01:47]} Be5 {[%emt 0:01:36]} 28. Rad1 {[%emt 0:00:12]} Bb3 {[%emt 0:04:33]} 29. Rd7 {[%emt 0:00:23]} Bxa4 {[%emt 0:00:08]} 30. Rxb7 {[%emt 0:00:19]} Bb5 {[%emt 0:05:41]} 31. Rxb5 {[%emt 0:01:14]} axb5 {[%emt 0:00:06]} 32. Bxa8 {[%emt 0:00:09]} Rxa8 {[%emt 0:00:04]} 33. b3 {[%emt 0:00:46]} Rb8 {[%emt 0:01:28]} 34. Rc1 {[%emt 0:00:58]} b4 {[%emt 0:05:13]} 35. Rc6 {[%emt 0:01:29]} Re8 {[%emt 0:02:24]} 36. Qc4 {[%emt 0:02:42]} Qf5 {[%emt 0:08:25]} 37. Qxb4 {[%emt 0:01:40]} Rb8 {[%emt 0:00:11]} 38. Rb6 {[%emt 0:04:31]} Rxb6 {[%emt 0:01:32]} 39. Qxb6 {[%emt 0:01:24]} Qb1+ {[%emt 0:00:30]} 40. Kg2 {[%emt 0:00:06]} Qe4+ {[%emt 0:00:05]} 41. f3 {[%emt 0:00:08]} Qd5 {[%emt 0:01:43]} 42. Qc5 {[%emt 0:00:35]} Qxb3 {[%emt 0:01:46]} 43. Qxe5 {[%emt 0:00:09]} Kf7 {[%emt 0:00:19]} 44. Qe4 {[%emt 0:00:15]} h6 {[%emt 0:00:28]} 45. h4 {[%emt 0:00:18]} Qb5 {[%emt 0:00:32]} 46. Bd4 {[%emt 0:00:25]} Qb3 {[%emt 0:01:30]} 47. h5 {[%emt 0:00:47]} Qa2+ {[%emt 0:00:30]} 48. Kh3 {[%emt 0:00:14]} Qc4 {[%emt 0:00:32]} 49. Qg6+ {[%emt 0:00:18]} 1-0

[Event "Amsterdam Chess Open 2024"]
[Site "Amsterdam"]
[Date "2024.11.03"]
[Round "5.12"]
[White "Van der Meiden, Dirk"]
[Black "Dumont, Ties"]
[Result "1/2-1/2"]
[ECO "A30"]
[WhiteElo "1968"]
[BlackElo "1914"]
[Annotator "RC"]
[PlyCount "47"]
[EventDate "2024.10.31"]
[EventType "swiss"]
[EventCountry "NED"]
[SourceTitle "playchess.com"]
[Source "ChessBase"]
[SourceQuality "1"]
[TimeControl "5400+30"]

1. d4 {[%emt 0:00:03]} Nf6 {[%emt 0:00:13]} 2. Nf3 {[%emt 0:00:15]} e6 {[%emt 0:00:08]} 3. c4 {[%emt 0:00:13]} b6 {[%emt 0:00:04]} 4. g3 {[%emt 0:00:42]} Bb7 {[%emt 0:00:10]} 5. Bg2 {[%emt 0:00:22]} c5 {[%emt 0:02:17]} 6. O-O {[%emt 0:04:00]} cxd4 {[%emt 0:00:36]} 7. Nxd4 {[%emt 0:02:04]} Bxg2 {[%emt 0:00:09]} 8. Kxg2 {[%emt 0:00:15]} Qc7 {[%emt 0:09:10]} 9. b3 {[%emt 0:04:48]} Bc5 {[%emt 0:02:21]} 10. Bb2 {[%emt 0:06:15]} O-O {[%emt 0:04:58]} 11. Nd2 {[%emt 0:06:20]} e5 {[%emt 0:10:53]} 12. Nb5 {[%emt 0:07:54]} Qb7+ {[%emt 0:01:17]} 13. e4 {[%emt 0:12:29]} Nxe4 {[%emt 0:04:21]} 14. Qf3 {[%emt 0:00:13]} d5 {[%emt 0:00:11]} 15. Rad1 {[%emt 0:09:23]} a6 {[%emt 0:08:07]} 16. Na3 {[%emt 0:06:37]} Nxd2 {[%emt 0:01:26]} 17. Rxd2 {[%emt 0:00:11]} e4 {[%emt 0:00:27]} 18. Qf5 {[%emt 0:05:05]} d4 {[%emt 0:03:44]} 19. Rxd4 {[%emt 0:02:14]} Bxd4 {[%emt 0:02:12]} 20. Bxd4 {[%emt 0:00:15]} e3+ {[%emt 0:10:55]} 21. f3 {[%emt 0:00:24]} e2 {[%emt 0:02:35]} 22. Re1 {[%emt 0:02:26]} Nc6 {[%emt 0:02:21]} 23. Bxg7 {[%emt 0:00:30]} Kxg7 {[%emt 0:08:41]} 24. Qg5+ {[%emt 0:00:12]} 1/2-1/2